fUSD/lending_fUSD_20250213
["ID","MTS","AMOUNT","RATE_DAILY","PERIOD"]
[352933328,1739442638693,-530.25,0.00015192,2]
[352933330,1739442638702,-500.0,0.00015192,2]
[352933332,1739442638711,-748.14,0.00015192,2]
[352933334,1739442638720,-500.0,0.00015192,2]
[352933336,1739442638729,-500.0,0.00015192,2]
[352933339,1739442638738,-2780.26,0.00015192,2]
[352933341,1739442638747,-500.0,0.00015192,2]
[352933343,1739442638756,-819.35,0.00015192,2]
[352933345,1739442638766,-500.0,0.00015192,2]
[352933347,1739442638775,-500.0,0.00015192,2]
[352933349,1739442638784,-500.0,0.00015192,2]
[352933351,1739442638793,-2059.01,0.00015192,2]
[352933353,1739442638803,-2478.27,0.00015192,2]
[352933355,1739442638812,-500.0,0.00015192,2]
[352933357,1739442638821,-500.0,0.00015192,2]
[352933358,1739442638830,-2719.77,0.00015192,2]
[352933361,1739442638839,-500.0,0.00015192,2]
[352933362,1739442638848,-511.08425563,0.00015192,2]
[352933364,1739442638858,-2343.31,0.00015192,2]
[352933366,1739442638867,-1342.59,0.00015192,2]
[352933368,1739442638876,-500.0,0.00015192,2]
[352933370,1739442638885,-500.0,0.00015192,2]
[352933371,1739442638894,-2709.91,0.00015192,2]
[352933372,1739442638903,-502.89180091,0.00015192,2]
[352933373,1739442638914,-500.0,0.00015192,2]
[352933374,1739442638924,-3916.29,0.00015192,2]
[352933375,1739442638933,-1137.05,0.00015192,2]
[352933376,1739442638942,-500.0,0.00015192,2]
[352933377,1739442638952,-500.0,0.00015192,2]
[352933378,1739442638961,-2062.07,0.00015192,2]
[352933379,1739442638970,-10432.72,0.00015192,2]
[352933380,1739442638980,-500.0,0.00015192,2]
[352933381,1739442638989,-500.0,0.00015192,2]
[352933382,1739442638998,-569.1,0.00015192,2]
[352933383,1739442639007,-2245.15,0.00015192,2]
[352933384,1739442639016,-504.96797469,0.00015192,2]
[352933385,1739442639028,-500.0,0.00015192,2]
[352933386,1739442639037,-831.24,0.00015192,2]
[352933387,1739442639046,-606.06,0.00015192,2]
[352933388,1739442639055,-500.0,0.00015192,2]
[352933389,1739442639065,-500.0,0.00015192,2]
[352933390,1739442639075,-2322.3,0.00015192,2]
[352933391,1739442639083,-500.0,0.00015192,2]
[352933392,1739442639093,-500.0,0.00015192,2]
[352933393,1739442639102,-500.0,0.00015192,2]
[352933394,1739442639112,-500.0,0.00015192,2]
[352933395,1739442639121,-500.0,0.00015192,2]
[352933396,1739442639131,-500.0,0.00015192,2]
[352933397,1739442639140,-1943.65,0.00015192,2]
[352933398,1739442639149,-500.0,0.00015192,2]
[352933399,1739442639159,-500.0,0.00015192,2]
[352933400,1739442639168,-500.0,0.00015192,2]
[352933401,1739442639177,-3107.7,0.00015192,2]
[352933402,1739442639186,-525.64,0.00015192,2]
[352933403,1739442639195,-500.0,0.00015192,2]
[352933404,1739442639204,-169.4035171,0.00015192,2]
[352933405,1739442639214,-1123.54,0.00015192,2]
[352933406,1739442639223,-500.0,0.00015192,2]
[352933407,1739442639232,-572.69,0.00015192,2]
[352933408,1739442639241,-500.0,0.00015192,2]
[352933409,1739442639250,-500.0,0.00015192,2]
[352933410,1739442639259,-500.0,0.00015192,2]
[352933411,1739442639268,-2900.09,0.00015192,2]
[352933412,1739442639277,-500.0,0.00015192,2]
[352933413,1739442639286,-506.45374156,0.00015192,2]
[352933414,1739442639295,-508.10423285,0.00015192,2]
[352933415,1739442639304,-632.27,0.00015192,2]
[352933416,1739442639313,-500.0,0.00015192,2]
[352933417,1739442639323,-264.54563271,0.00015192,2]
[352933418,1739442639332,-2426.45,0.00015192,2]
[352933419,1739442639341,-500.0,0.00015192,2]
[352933420,1739442639351,-500.0,0.00015192,2]
[352933421,1739442639360,-775.77,0.00015192,2]
[352933422,1739442639370,-1000.0,0.00015192,2]
[352933423,1739442639378,-579.4,0.00015192,2]
[352933424,1739442639387,-913.27,0.00015192,2]
[352933425,1739442639397,-2988.45,0.00015192,2]
[352933426,1739442639406,-183.58894276,0.00015192,2]
[352933427,1739442639415,-500.0,0.00015192,2]
[352933428,1739442639424,-688.2,0.00015192,2]
[352933429,1739442639434,-500.0,0.00015192,2]
[352933430,1739442639443,-506.47782098,0.00015192,2]
[352933431,1739442639453,-2994.95,0.00015192,2]
[352933432,1739442639462,-377.46205654,0.00015192,2]
[352933433,1739442639472,-500.0,0.00015192,2]
[352933434,1739442639481,-500.0,0.00015192,2]
[352933435,1739442639490,-1085.38,0.00015192,2]
[352933436,1739442639499,-185.86282879,0.00015192,2]
[352933437,1739442639509,-3335.74,0.00015192,2]
[352933438,1739442639518,-501.47595755,0.00015192,2]
[352933439,1739442639527,-500.0,0.00015192,2]
[352933440,1739442639536,-500.0,0.00015193,2]
[352933441,1739442639545,-470.8625883,0.00015193,2]
[352933442,1739442639555,-500.0,0.00015193,2]
[352933443,1739442639564,-500.0,0.00015193,2]
[352933444,1739442639574,-500.0,0.00015193,2]
[352933445,1739442639583,-500.0,0.00015193,2]
[352933446,1739442639593,-391.06237655,0.00015193,2]
[352933447,1739442639605,-500.0,0.00015193,2]
[352933448,1739442639615,-500.0,0.00015193,2]
[352933449,1739442639624,-500.0,0.00015193,2]
[352933450,1739442639634,-501.2339412,0.00015193,2]
[352933451,1739442639645,-501.24907164,0.00015193,2]
[352933452,1739442639654,-501.44754775,0.00015193,2]
[352933453,1739442639664,-506.64746913,0.00015193,2]
[352933454,1739442639675,-504.7777303,0.00015193,2]
[352933455,1739442639684,-506.83912354,0.00015193,2]
[352933456,1739442639694,-500.0,0.00015193,2]
[352933457,1739442639703,-500.0,0.00015193,2]
[352933458,1739442639713,-500.0,0.00015193,2]
[352933459,1739442639724,-500.0,0.00015193,2]
[352933460,1739442639734,-500.0,0.00015193,2]
[352933461,1739442639744,-1212.0,0.00015193,2]
[352933462,1739442639899,-500.8773055,0.00015193,2]
[352933463,1739442639910,-500.0,0.00015193,2]
[352933464,1739442639920,-500.0,0.00015193,2]
[352933465,1739442639930,-500.0,0.00015193,2]
[352933466,1739442639940,-500.0,0.00015193,2]
[352933467,1739442639950,-500.0,0.00015193,2]
[352933468,1739442639959,-500.0,0.00015193,2]
[352933469,1739442639968,-500.0,0.00015193,2]
[352933470,1739442639978,-166.01874041,0.00015193,2]
[352933474,1739442641754,-500.0,0.00014998,2]
[352933475,1739442641764,-500.0,0.00014998,2]
[352933476,1739442641774,-564.86,0.00015135,2]
[352933477,1739442641783,-502.77408485,0.00015191,2]
[352933478,1739442641792,-3352.7522985,0.00015193,3]
[352933479,1739442641811,-548.35263034,0.00015193,3]
[352933480,1739442641842,95.10733087,0.00013068,2]
[352933481,1739442642134,-904.89266913,0.00013068,2]
[352933482,1739442642144,-1000.0,0.00014438,2]
[352933483,1739442642154,-500.0,0.00015181,2]
[352933484,1739442642163,-674.29699567,0.00015193,3]
[352933485,1739442642182,-5898.221883,0.00015193,3]
[352933486,1739442642308,-7913.68856522,0.00015193,3]
[352933487,1739442642327,-336.34748834,0.00015193,2]
[352933488,1739442642344,-500.0,0.00015193,2]
[352933489,1739442642357,-502.08624937,0.00015193,2]
[352933490,1739442642376,-500.0,0.00015193,2]
[352933491,1739442642394,-500.0,0.00015193,2]
[352933492,1739442642414,-500.0,0.00015193,2]
[352933493,1739442642432,-590.93,0.00015193,2]
[352933494,1739442642449,-979.91,0.00015193,2]
[352933495,1739442642466,-500.0,0.00015193,2]
[352933496,1739442642484,-500.0,0.00015193,2]
[352933497,1739442642497,-868.44,0.00015193,2]
[352933498,1739442642514,-500.0,0.00015193,2]
[352933499,1739442642529,-500.0,0.00015193,2]
[352933500,1739442642542,-503.1317357,0.00015193,2]
[352933501,1739442642557,-613.12922841,0.00015193,2]
[352933502,1739442642570,-500.0,0.00015193,2]
[352933503,1739442642588,-500.0,0.00015193,2]
[352933504,1739442642604,-500.0,0.00015193,2]
[352933505,1739442642618,-500.0,0.00015193,2]
[352933506,1739442642633,-500.0,0.00015193,2]
[352933507,1739442642651,-506.31583452,0.00015193,2]
[352933508,1739442642664,-549.33,0.00015193,2]
[352933509,1739442642679,-500.0,0.00015193,2]
[352933510,1739442642695,-749.3,0.00015193,2]
[352933511,1739442642712,-500.0,0.00015193,2]
[352933512,1739442642727,-500.0,0.00015193,2]
[352933513,1739442642742,-500.0,0.00015193,2]
[352933514,1739442642759,-1384.52,0.00015193,2]
[352933515,1739442642774,-500.0,0.00015193,2]
[352933516,1739442642791,-632.42,0.00015193,2]
[352933517,1739442642807,-500.0,0.00015193,2]
[352933518,1739442642821,-500.0,0.00015193,2]
[352933519,1739442642836,-500.0,0.00015193,2]
[352933520,1739442642852,-717.21,0.00015193,2]
[352933521,1739442642866,-500.0,0.00015193,2]
[352933522,1739442642881,-500.0,0.00015193,2]
[352933523,1739442642896,-500.0,0.00015193,2]
[352933524,1739442642911,-500.0,0.00015193,2]
[352933525,1739442642925,-698.62,0.00015193,2]
[352933526,1739442642939,-500.0,0.00015193,2]
[352933527,1739442642954,-500.0,0.00015193,2]
[352933528,1739442642969,-500.0,0.00015193,2]
[352933529,1739442642983,-500.0,0.00015193,2]
[352933530,1739442642998,-500.0,0.00015193,2]
[352933531,1739442643012,-500.0,0.00015193,2]
[352933532,1739442643026,-641.08,0.00015193,2]
[352933533,1739442643041,-500.0,0.00015193,2]
[352933534,1739442643056,-500.0,0.00015193,2]
[352933537,1739442643070,-500.0,0.00015193,2]
[352933539,1739442643085,-500.0,0.00015193,2]
[352933542,1739442643100,-631.04,0.00015193,2]
[352933544,1739442643114,-500.0,0.00015193,2]
[352933545,1739442643130,-500.0,0.00015193,2]
[352933546,1739442643144,-885.32,0.00015193,2]
[352933547,1739442643158,-553.14,0.00015193,2]
[352933548,1739442643173,-500.0,0.00015193,2]
[352933549,1739442643187,-695.28,0.00015193,2]
[352933550,1739442643203,-500.0,0.00015193,2]
[352933551,1739442643218,-500.0,0.00015193,2]
[352933554,1739442643233,-500.0,0.00015193,2]
[352933556,1739442643249,-500.0,0.00015193,2]
[352933559,1739442643263,-500.0,0.00015193,2]
[352933560,1739442643278,-500.0,0.00015193,2]
[352933561,1739442643294,-500.0,0.00015193,2]
[352933563,1739442643308,-1136.48,0.00015193,2]
[352933565,1739442643323,-500.0,0.00015193,2]
[352933566,1739442643337,-1037.95,0.00015193,2]
[352933567,1739442643352,-500.0,0.00015193,2]
[352933568,1739442643368,-500.0,0.00015193,2]
[352933569,1739442643384,-500.0,0.00015193,2]
[352933570,1739442643400,-854.57,0.00015193,2]
[352933571,1739442643413,-500.0,0.00015193,2]
[352933572,1739442643423,-500.0,0.00015193,2]
[352933573,1739442643433,-500.0,0.00015193,2]
[352933574,1739442643444,-500.0,0.00015193,2]
[352933575,1739442643454,-500.0,0.00015193,2]
[352933576,1739442643465,-500.0,0.00015193,2]
[352933577,1739442643476,-500.0,0.00015193,2]
[352933578,1739442643487,-500.0,0.00015193,2]
[352933579,1739442643499,-500.0,0.00015193,2]
[352933580,1739442643510,-500.0,0.00015193,2]
[352933581,1739442643521,-500.0,0.00015193,2]
[352933582,1739442643531,-500.0,0.00015193,2]
[352933583,1739442643540,-500.0,0.00015193,2]
[352933584,1739442643551,-500.0,0.00015193,2]
[352933585,1739442643562,-500.0,0.00015193,2]
[352933586,1739442643573,-742.21,0.00015193,2]
[352933587,1739442643582,-500.0,0.00015193,2]
[352933588,1739442643592,-500.0,0.00015193,2]
[352933589,1739442643608,-500.0,0.00015193,2]
[352933590,1739442643618,-632.78,0.00015193,2]
[352933591,1739442643628,-500.0,0.00015193,2]
[352933592,1739442643638,-500.0,0.00015193,2]
[352933600,1739442643992,-500.0,0.00015193,2]
[352933601,1739442644017,-156.47236129,0.00015193,2]
[352933602,1739442644030,-500.0,0.00015193,2]
[352933603,1739442644039,-500.0,0.00015193,2]
[352933604,1739442644048,-500.0,0.00015193,2]
[352933605,1739442644058,-500.0,0.00015193,2]
[352933606,1739442644067,-500.0,0.00015193,2]
[352933607,1739442644075,-500.0,0.00015193,2]
[352933608,1739442644084,-243.3800064,0.00015193,2]
[352933609,1739442644093,-500.0,0.00015193,2]
[352933610,1739442644103,-500.0,0.00015193,2]
[352933611,1739442644112,-526.22647748,0.00015193,2]
[352933612,1739442644121,-500.0,0.00015193,2]
[352933613,1739442644131,-500.0,0.00015193,2]
[352933614,1739442644140,-501.27669962,0.00015193,2]
[352933615,1739442644148,-1132.86,0.00015193,2]
[352933616,1739442644158,-500.0,0.00015193,2]
[352933617,1739442644167,-500.0,0.00015193,2]
[352933618,1739442644176,-500.0,0.00015193,2]
[352933619,1739442644185,-1070.33,0.00015193,2]
[352933620,1739442644194,-500.0,0.00015193,2]
[352933621,1739442644203,-507.21034192,0.00015193,2]
[352933622,1739442644212,-500.60205702,0.00015193,2]
[352933623,1739442644221,-500.0,0.00015193,2]
[352933624,1739442644230,-500.0,0.00015193,2]
[352933625,1739442644239,-500.0,0.00015193,2]
[352933626,1739442644248,-500.0,0.00015193,2]
[352933627,1739442644257,-500.0,0.00015193,2]
[352933628,1739442644266,-1121.53,0.00015193,2]
[352933629,1739442644275,-500.0,0.00015193,2]
[352933630,1739442644284,-500.0,0.00015193,2]
[352933631,1739442644292,-500.0,0.00015193,2]
[352933632,1739442644302,-500.0,0.00015193,2]
[352933633,1739442644311,-1103.5,0.00015193,2]
[352933634,1739442644319,-780.71,0.00015193,2]
[352933635,1739442644328,-500.0,0.00015193,2]
[352933636,1739442644337,-500.0,0.00015193,2]
[352933637,1739442644346,-500.0,0.00015193,2]
[352933638,1739442644355,-1005.76,0.00015193,2]
[352933639,1739442644366,-500.0,0.00015193,2]
[352933640,1739442644375,-500.0,0.00015193,2]
[352933641,1739442644384,-500.0,0.00015193,2]
[352933642,1739442644393,-537.06,0.00015193,2]
[352933643,1739442644402,-500.0,0.00015193,2]
[352933644,1739442644413,-2291.71,0.00015193,2]
[352933645,1739442644425,-500.0,0.00015193,2]
[352933646,1739442644434,-1394.46,0.00015193,2]
[352933647,1739442644444,-500.0,0.00015193,2]
[352933648,1739442644452,-500.0,0.00015193,2]
[352933649,1739442644462,-621.09,0.00015193,2]
[352933650,1739442644471,-1171.06,0.00015193,2]
[352933651,1739442644480,-444.84804732,0.00015193,2]
[352933652,1739442644489,-243.90381176,0.00015193,2]
[352933653,1739442644497,-500.0,0.00015193,2]
[352933654,1739442644506,-500.0,0.00015193,2]
[352933655,1739442644515,-1474.78,0.00015193,2]
[352933656,1739442644524,-500.0,0.00015193,2]
[352933657,1739442644534,-2313.57,0.00015193,2]
[352933658,1739442644543,-500.0,0.00015193,2]
[352933659,1739442644552,-3889.77989785,0.00015193,2]
[352933660,1739442644562,-726.04,0.00015193,2]
[352933661,1739442644571,-1142.07,0.00015193,2]
[352933662,1739442644580,-500.0,0.00015193,2]
[352933663,1739442644589,-500.0,0.00015193,2]
[352933664,1739442644601,-500.0,0.00015193,2]
[352933665,1739442644610,-500.0,0.00015193,2]
[352933666,1739442644619,-506.05,0.00015193,2]
[352933667,1739442644628,-500.0,0.00015193,2]
[352933668,1739442644639,-1368.63,0.00015193,2]
[352933669,1739442644648,-1991.57,0.00015193,2]
[352933670,1739442644658,-974.88,0.00015193,2]
[352933671,1739442644669,-967.15,0.00015193,2]
[352933672,1739442644679,-500.0,0.00015193,2]
[352933673,1739442644689,-500.50081125,0.00015193,2]
[352933674,1739442644698,-1876.33,0.00015193,2]
[352933675,1739442644707,-500.0,0.00015193,2]
[352933676,1739442644717,-2022.91,0.00015193,2]
[352933677,1739442644727,-500.0,0.00015193,2]
[352933678,1739442644736,-500.0,0.00015193,2]
[352933679,1739442644747,-500.0,0.00015193,2]
[352933680,1739442644757,-501.07471443,0.00015193,2]
[352933681,1739442644768,-500.0,0.00015193,2]
[352933682,1739442644778,-1881.15,0.00015193,2]
[352933683,1739442644790,-500.0,0.00015193,2]
[352933684,1739442644800,-937.2,0.00015193,2]
[352933685,1739442644810,-1412.28,0.00015193,2]
[352933686,1739442644819,-500.0,0.00015193,2]
[352933687,1739442644829,-689.9,0.00015193,2]
[352933688,1739442644839,-1088.63,0.00015193,2]
[352933689,1739442644848,-500.0,0.00015193,2]
[352933690,1739442644857,-500.0,0.00015193,2]
[352933691,1739442644868,-961.52,0.00015193,2]
[352933692,1739442644877,-500.0,0.00015193,2]
[352933693,1739442644887,-500.0,0.00015193,2]
[352933694,1739442644897,-502.88102574,0.00015193,2]
[352933695,1739442644906,-709.35,0.00015193,2]
[352933696,1739442644916,-500.0,0.00015193,2]
[352933697,1739442644926,-500.0,0.00015193,2]
[352933698,1739442644936,-500.0,0.00015193,2]
[352933699,1739442644951,-500.0,0.00015193,2]
[352933700,1739442644960,-2107.82,0.00015193,2]
[352933701,1739442644971,-500.0,0.00015193,2]
[352933702,1739442644980,-1243.69,0.00015193,2]
[352933703,1739442644989,-2167.31,0.00015193,2]
[352933704,1739442644998,-1026.44,0.00015193,2]
[352933705,1739442645007,-500.0,0.00015193,2]
[352933706,1739442645016,-500.0,0.00015193,2]
[352933707,1739442645025,-511.38314207,0.00015193,2]
[352933708,1739442645034,-500.0,0.00015193,2]
[352933709,1739442645044,-2140.77,0.00015193,2]
[352933710,1739442645053,-1065.29,0.00015193,2]
[352933711,1739442645063,-678.52,0.00015193,2]
[352933712,1739442645073,-595.42,0.00015193,2]
[352933713,1739442645083,-500.0,0.00015193,2]
[352933714,1739442645094,-500.0,0.00015193,2]
[352933715,1739442645105,-500.0,0.00015193,2]
[352933716,1739442645115,-539.34,0.00015193,2]
[352933717,1739442645124,-500.0,0.00015193,2]
[352933718,1739442645134,-1121.16,0.00015193,2]
[352933719,1739442645143,-553.25,0.00015193,2]
[352933720,1739442645152,-1218.12,0.00015193,2]
[352933721,1739442645162,-500.0,0.00015193,2]
[352933722,1739442645171,-1317.9,0.00015193,2]
[352933723,1739442645180,-500.0,0.00015193,2]
[352933724,1739442645189,-500.0,0.00015193,2]
[352933725,1739442645198,-200.0,0.00015194,2]
[352933726,1739442645208,-200.0,0.00015194,2]
[352933727,1739442645217,-200.0,0.00015194,2]
[352933728,1739442645227,-500.0,0.00015194,2]
[352933729,1739442645236,-500.0,0.00015195,2]
[352933730,1739442645245,-150.0,0.00015195,2]
[352933731,1739442645255,-500.0,0.00015195,2]
[352933732,1739442645264,-500.0,0.00015195,2]
[352933733,1739442645274,-500.0,0.00015197,2]
[352933734,1739442645284,-150.0,0.00015198,2]
[352933735,1739442645295,-150.0,0.00015199,2]
[352933736,1739442645305,-150.0,0.00015202,2]
[352933737,1739442645314,-500.0,0.00015204,2]
[352933738,1739442645325,-2285.72,0.00015205,2]
[352933739,1739442645334,-2285.72,0.00015205,2]
[352933740,1739442645345,-2285.72,0.00015205,2]
[352933741,1739442645355,-2285.72,0.00015205,2]
[352933742,1739442645366,-2285.72,0.00015205,2]
[352933743,1739442645375,-2285.72,0.00015205,2]
[352933744,1739442645384,-2285.72,0.00015205,2]
[352933745,1739442645393,-2285.72,0.00015205,2]
[352933746,1739442645402,-2285.72,0.00015205,2]
[352933747,1739442645411,-2285.72,0.00015205,2]
[352933748,1739442645421,-2285.72,0.00015205,2]
[352933749,1739442645430,-2285.72,0.00015205,2]
[352933750,1739442645439,-2285.72,0.00015205,2]
[352933751,1739442645448,-2285.72,0.00015205,2]
[352933752,1739442645457,-2285.72,0.00015205,2]
[352933753,1739442645467,-2285.72,0.00015205,2]
[352933754,1739442645476,-2285.72,0.00015205,2]
[352933755,1739442645486,-2285.72,0.00015205,2]
[352933756,1739442645497,-2285.72,0.00015205,2]
[352933757,1739442645507,-2285.72,0.00015205,2]
[352933758,1739442645516,-2285.72,0.00015205,2]
[352933759,1739442645526,-2285.72,0.00015205,2]
[352933760,1739442645536,-2285.72,0.00015205,2]
[352933761,1739442645545,-2285.79016293,0.00015205,2]
[352933762,1739442645554,-151.0,0.00015205,2]
[352933763,1739442645564,-151.0,0.00015205,2]
[352933764,1739442645574,-150.0,0.00015206,2]
[352933765,1739442645585,-1695.7553062,0.00015207,2]
[352933766,1739442645595,-150.0,0.00015208,2]
[352933767,1739442645609,-174.70051492,0.00015218,2]
[352933768,1739442645619,-20782.25373911,0.00015219,2]
[352933769,1739442645628,-150.0,0.00015223,2]
[352933770,1739442645638,-150.0,0.00015223,2]
[352933771,1739442645649,-150.0,0.00015224,2]
[352933772,1739442645658,-1695.7553062,0.0001523,2]
[352933773,1739442645667,-150.0,0.00015236,2]
[352933774,1739442645678,-150.0,0.00015236,2]
[352933775,1739442645687,-150.0,0.00015243,2]
[352933776,1739442645697,-150.0,0.00015244,2]
[352933777,1739442645707,-150.0,0.00015245,2]
[352933778,1739442645716,-174.7005149,0.00015245,2]
[352933779,1739442645726,-150.0,0.00015251,2]
[352933780,1739442645735,-1695.7553062,0.00015254,2]
[352933781,1739442645745,-150.0,0.00015257,2]
[352933782,1739442645755,-150.0,0.00015257,2]
[352933783,1739442645765,-150.0,0.00015258,2]
[352933784,1739442645776,-150.0,0.00015258,2]
[352933785,1739442645786,-150.0,0.00015267,2]
[352933786,1739442645795,-150.0,0.00015268,2]
[352933787,1739442645804,-150.0,0.00015272,2]
[352933788,1739442645814,-645.53,0.00015272,2]
[352933789,1739442645823,-961.42,0.00015272,2]
[352933790,1739442645832,-612.07,0.00015272,2]
[352933791,1739442645842,-1658.43,0.00015272,2]
[352933792,1739442645852,-1487.39,0.00015272,2]
[352933793,1739442645862,-2179.53,0.00015272,2]
[352933794,1739442645871,-830.33,0.00015272,2]
[352933795,1739442645880,-500.0,0.00015272,2]
[352933796,1739442645890,-174.7005149,0.00015273,2]
[352933797,1739442645899,-150.0,0.00015274,2]
[352933798,1739442645909,-2000.0,0.00015276,2]
[352933799,1739442645918,-500.0,0.00015276,2]
[352933800,1739442645928,-1695.7553062,0.00015277,2]
[352933801,1739442645939,-150.0,0.00015277,2]
[352933802,1739442645949,-150.0,0.00015278,2]
[352933803,1739442645961,-150.0,0.00015288,2]
[352933804,1739442645972,-150.0,0.0001529,2]
[352933805,1739442645982,-150.0,0.00015292,2]
[352933806,1739442645992,-150.0,0.00015294,2]
[352933807,1739442646002,-150.0,0.00015297,2]
[352933808,1739442646011,-150.0,0.00015298,2]
[352933809,1739442646021,-150.0,0.000153,2]
[352933810,1739442646031,-174.7005149,0.000153,2]
[352933811,1739442646040,-1695.7553062,0.000153,2]
[352933812,1739442646050,-1751.15858664,0.000153,2]
[352933813,1739442646059,-1006.0,0.000153,2]
[352933814,1739442646068,-623.37911118,0.000153,2]
[352933815,1739442646078,-150.0,0.00015301,2]
[352933816,1739442646088,-150.0,0.00015302,2]
[352933817,1739442646098,-150.0,0.00015302,2]
[352933818,1739442646107,-150.0,0.00015306,2]
[352933819,1739442646117,-1024.0,0.0001531,2]
[352933820,1739442646127,-150.0,0.00015313,2]
[352933821,1739442646137,-150.0,0.00015317,2]
[352933822,1739442646146,-1441.19,0.00015317,2]
[352933823,1739442646156,-2367.51,0.00015317,2]
[352933824,1739442646165,-4521.98,0.00015317,2]
[352933825,1739442646175,-2301.03,0.00015317,2]
[352933826,1739442646185,-2023.7,0.00015317,2]
[352933827,1739442646194,-3471.23,0.00015317,2]
[352933828,1739442646204,-3997.69,0.00015317,2]
[352933829,1739442646213,-500.0,0.00015317,2]
[352933830,1739442646222,-3561.13,0.00015317,2]
[352933831,1739442646231,-3407.51,0.00015317,2]
[352933832,1739442646241,-2876.18,0.00015317,2]
[352933833,1739442646251,-2985.58,0.00015317,2]
[352933834,1739442646260,-5196.91,0.00015317,2]
[352933835,1739442646269,-5003.71,0.00015317,2]
[352933836,1739442646279,-3185.05,0.00015317,2]
[352933837,1739442646288,-2460.64,0.00015317,2]
[352933838,1739442646298,-500.0,0.00015317,2]
[352933839,1739442646308,-2336.04,0.00015317,2]
[352933840,1739442646318,-5998.54,0.00015317,2]
[352933841,1739442646327,-500.0,0.00015317,2]
[352933842,1739442646337,-1391.23,0.00015317,2]
[352933843,1739442646347,-971.77,0.00015317,2]
[352933844,1739442646356,-3784.42,0.00015317,2]
[352933845,1739442646366,-1547.32,0.00015317,2]
[352933846,1739442646375,-1246.04,0.00015317,2]
[352933847,1739442646384,-151.0,0.00015317,2]
[352933848,1739442646393,-151.0,0.00015317,2]
[352933849,1739442646403,-1998.28,0.00015317,2]
[352933850,1739442646412,-4746.67,0.00015317,2]
[352933851,1739442646422,-151.0,0.00015317,2]
[352933852,1739442646431,-1878.05,0.00015318,2]
[352933853,1739442646440,-1073.81,0.00015318,2]
[352933854,1739442646449,-1031.77,0.00015318,2]
[352933855,1739442646459,-500.0,0.00015318,2]
[352933856,1739442646469,-1578.88,0.00015318,2]
[352933857,1739442646478,-1395.11,0.00015318,2]
[352933858,1739442646488,-1210.29,0.00015318,2]
[352933859,1739442646497,-2577.82,0.00015318,2]
[352933860,1739442646507,-500.0,0.00015318,2]
[352933861,1739442646516,-1873.38,0.00015318,2]
[352933862,1739442646527,-600.55,0.00015318,2]
[352933863,1739442646536,-1398.54,0.00015318,2]
[352933864,1739442646546,-1465.28,0.00015318,2]
[352933865,1739442646555,-500.0,0.00015318,2]
[352933866,1739442646565,-500.0,0.00015318,2]
[352933867,1739442646575,-1576.01,0.00015318,2]
[352933868,1739442646584,-150.0,0.00015318,2]
[352933869,1739442646595,-1095.41,0.00015318,2]
[352933870,1739442646617,-2319.22,0.00015318,2]
[352933871,1739442646638,-1450.01,0.00015318,2]